lending/lending_fUSD_20260119
["ID","MTS","AMOUNT","RATE_DAILY","PERIOD"]
[402681797,1768799443847,-674.41,0.00017211,2]
[402681798,1768799443857,-662.88,0.00017211,2]
[402681799,1768799443867,-984.56,0.00017211,2]
[402681800,1768799443876,-705.06,0.00017219,2]
[402681801,1768799443885,-500.0,0.00017224,2]
[402681802,1768799443895,-3928.0,0.00017225,2]
[402681803,1768799443904,-646.0,0.0001723,2]
[402681804,1768799443914,-1000.0,0.0001726,2]
[402681805,1768799443925,-650.2018649,0.00017285,2]
[402681806,1768799443935,-4371.0,0.00017288,2]
[402681807,1768799443948,-900.0,0.000173,6]
[402681808,1768799443959,-5198.218123,0.00017306,2]
[402681809,1768799443970,-935.0,0.00017315,2]
[402681810,1768799443979,-2045.65935531,0.00017318,2]
[402681811,1768799443989,-982.0402849,0.00017318,2]
[402681812,1768799443998,-4319.62586682,0.00017318,2]
[402681813,1768799444008,-823.0,0.00017355,2]
[402681814,1768799444017,-298.70669878,0.00017366,2]
[402681815,1768799444028,-8614.66000668,0.00017366,2]
[402681816,1768799444038,-444.95570568,0.00017391,2]
[402681817,1768799444047,-1300.0,0.000174,6]
[402681818,1768799444056,-500.0,0.00017453,2]
[402681819,1768799444065,-3928.0,0.00017467,2]
[402681820,1768799444075,-705.06,0.00017493,2]
[402681821,1768799444084,-1600.0,0.000175,6]
[402681822,1768799444094,-5198.218123,0.00017504,2]
[402681823,1768799444104,-823.0,0.00017506,2]
[402681824,1768799444115,-14702.0,0.00017509,2]
[402681825,1768799444124,-500.0,0.00017526,2]
[402681826,1768799444133,-150.0,0.00017531,2]
[402681827,1768799444143,-500.0,0.00017531,2]
[402681828,1768799444152,-150.0,0.00017531,2]
[402681829,1768799444161,-150.0,0.00017531,2]
[402681830,1768799444174,-213.50419606,0.00017531,2]
[402681831,1768799444183,-150.0,0.00017531,2]
[402681832,1768799444192,-800.0,0.00017534,2]
[402681833,1768799444201,-1000.0,0.00017534,2]
[402681834,1768799444222,-799.0,0.0001754,2]
[402681835,1768799444233,-8614.66000668,0.00017544,2]
[402681836,1768799444243,-263.17,0.00017579,2]
[402681837,1768799444253,-495.50884373,0.00017581,2]
[402681838,1768799444263,-874.13633489,0.00017581,2]
[402681839,1768799444272,-1307.65567833,0.00017581,2]
[402681840,1768799444282,-1769.2983,0.00017581,2]
[402681841,1768799444291,-799.0,0.00017582,2]
[402681842,1768799444300,-234.84703135,0.00017586,2]
[402681843,1768799444310,-500.0,0.00017586,2]
[402681844,1768799444322,-150.0,0.00017586,2]
[402681845,1768799444333,-150.0,0.00017586,2]
[402681846,1768799444343,-150.0,0.00017586,2]
[402681847,1768799444354,-300.0,0.000176,6]
[402681848,1768799444364,-799.0,0.00017624,2]
[402681849,1768799444375,-150.0,0.00017626,2]
[402681850,1768799444384,-298.70669878,0.00017633,2]
[402681851,1768799444393,-159.26,0.00017633,2]
[402681852,1768799444404,-500.0,0.00017641,2]
[402681853,1768799444415,-150.0,0.00017641,2]
[402681854,1768799444424,-150.0,0.00017641,2]
[402681855,1768799444434,-595.37131296,0.00017647,2]
[402681856,1768799444443,-181.08010149,0.00017647,2]
[402681857,1768799444453,-799.0,0.00017665,2]
[402681858,1768799444463,-150.0,0.00017681,2]
[402681859,1768799444473,-14702.0,0.00017689,2]
[402681860,1768799444482,-215.7773908,0.00017695,2]
[402681861,1768799444492,-150.0,0.00017695,2]
[402681862,1768799444502,-150.0,0.00017695,2]
[402681863,1768799444512,-1680.0,0.00017699,2]
[402681864,1768799444522,-300.0,0.000177,6]
[402681865,1768799444532,-5198.218123,0.00017702,2]
[402681866,1768799444541,-799.0,0.00017707,2]
[402681867,1768799444551,-286.17,0.00017709,2]
[402681868,1768799444560,-264.52,0.00017709,2]
[402681869,1768799444570,-8614.66000668,0.00017722,2]
[402681870,1768799444579,-1300.0,0.00017726,7]
[402681871,1768799444588,-150.0,0.00017736,2]
[402681872,1768799444598,-160.35608488,0.00017736,2]
[402681873,1768799444607,-250.0,0.00017736,2]
[402681874,1768799444616,-187.98100774,0.00017736,2]
[402681875,1768799444625,-324.57277036,0.00017736,2]
[402681876,1768799444635,-1310.06011249,0.00017738,2]
[402681877,1768799444644,-300.0,0.00017738,2]
[402681878,1768799444654,-195.0,0.00017738,2]
[402681879,1768799444663,-250.0,0.00017738,2]
[402681880,1768799444673,-359.14456207,0.00017738,2]
[402681881,1768799444683,-195.0,0.00017738,2]
[402681882,1768799444692,-799.0,0.00017749,2]
[402681883,1768799444702,-150.0,0.0001775,2]
[402681884,1768799444711,-150.0,0.0001775,2]
[402681885,1768799444722,-3473.0,0.00017763,2]
[402681886,1768799444731,-1407.0,0.00017763,2]
[402681887,1768799444740,-412.0,0.00017763,2]
[402681888,1768799444750,-1268.0,0.00017763,2]
[402681889,1768799444759,-705.06,0.00017767,2]
[402681890,1768799444774,-150.0,0.0001779,2]
[402681891,1768799444784,-799.0,0.00017791,2]
[402681892,1768799444794,-2000.0,0.000178,2]
[402681893,1768799444804,-1000.0,0.000178,2]
[402681894,1768799444814,-300.0,0.000178,6]
[402681895,1768799444823,-250.0,0.00017805,2]
[402681896,1768799444833,-250.0,0.00017805,2]
[402681897,1768799444843,-1000.0,0.00017808,2]
[402681898,1768799444855,-1202.0,0.00017816,2]
[402681899,1768799444864,-915.0,0.00017816,2]
[402681900,1768799444876,-6562.0,0.00017816,2]
[402681901,1768799444886,-4826.0,0.00017816,2]
[402681902,1768799444897,-566.0,0.00017816,2]
[402681903,1768799444907,-5224.98447911,0.0001783,2]
[402681904,1768799444917,-799.0,0.00017833,2]
[402681905,1768799444927,-150.0,0.00017845,2]
[402681906,1768799444937,-200.0,0.00017856,2]
[402681907,1768799444947,-14702.0,0.0001787,2]
[402681908,1768799444957,-799.0,0.00017875,2]
[402681909,1768799444969,-823.0,0.00017887,2]
[402681910,1768799444979,-200.94075382,0.000179,2]
[402681911,1768799444989,-298.70669878,0.000179,2]
[402681912,1768799445290,-1101.0,0.000179,2]
[402681913,1768799445300,-8614.66000668,0.000179,2]
[402681914,1768799445310,-300.0,0.000179,6]
[402681915,1768799445319,-10117.10825468,0.000179,2]
[402681916,1768799445328,-500.0,0.000179,2]
[402681917,1768799445337,-500.0,0.000179,2]
[402681918,1768799445347,-500.0,0.000179,2]
[402681919,1768799445356,-500.0,0.000179,2]
[402681920,1768799445365,-500.0,0.000179,2]
[402681921,1768799445375,-500.0,0.000179,2]
[402681922,1768799445384,-500.0,0.000179,2]
[402681923,1768799445393,-500.0,0.000179,2]
[402681924,1768799445402,-500.0,0.000179,2]
[402681925,1768799445411,-500.0,0.000179,2]
[402681926,1768799445420,-500.0,0.000179,2]
[402681927,1768799445429,-500.0,0.000179,2]
[402681928,1768799445438,-500.0,0.000179,2]
[402681929,1768799445447,-500.0,0.000179,2]
[402681930,1768799445457,-500.0,0.000179,2]
[402681931,1768799445466,-500.0,0.000179,2]
[402681932,1768799445475,-500.0,0.000179,2]
[402681933,1768799445484,-500.0,0.000179,2]
[402681934,1768799445494,-500.0,0.000179,2]
[402681935,1768799445503,-500.0,0.000179,2]
[402681936,1768799445512,-500.0,0.000179,2]
[402681937,1768799445521,-500.0,0.000179,2]
[402681938,1768799445530,-500.0,0.000179,2]
[402681939,1768799445539,-500.0,0.000179,2]
[402681940,1768799445548,-500.0,0.000179,2]
[402681941,1768799445557,-500.0,0.000179,2]
[402681942,1768799445567,-500.0,0.000179,2]
[402681943,1768799445576,-500.0,0.000179,2]
[402681944,1768799445585,-500.0,0.000179,2]
[402681945,1768799445595,-500.0,0.000179,2]
[402681946,1768799445604,-799.0,0.00017916,2]
[402681947,1768799445613,-1027.83837402,0.00017958,2]
[402681948,1768799445622,-799.0,0.00017958,2]
[402681949,1768799445632,-151.60783167,0.0001796,2]
[402681950,1768799445644,-1000.0,0.00017962,2]
[402681951,1768799445654,-150.0,0.00017973,2]
[402681952,1768799445664,-500.0,0.00017973,2]
[402681953,1768799445674,-500.0,0.00017982,2]
[402681954,1768799445684,-428.46849167,0.00017997,2]
[402681955,1768799445693,-1527.1195448,0.00017997,2]
[402681956,1768799445703,-3453.3592027,0.00017998,2]
[402681957,1768799445712,-150.0,0.00017999,2]
[402681958,1768799445721,-200.35890483,0.00017999,2]
[402681959,1768799445731,-155.0,0.00017999,2]
[402681960,1768799445740,-500.0,0.00017999,2]
[402681961,1768799445750,-500.0,0.00017999,2]
[402681962,1768799445760,-500.0,0.00017999,2]
[402681963,1768799445774,-500.0,0.00017999,2]
[402681964,1768799445783,-500.0,0.00017999,2]
[402681965,1768799445793,-393.19983365,0.00017999,2]
[402681966,1768799445802,-197.72778731,0.00017999,2]
[402681967,1768799445812,-208.46022007,0.00018,2]
[402681968,1768799445821,-824876.79600805,0.00018,2]
[402681973,1768799447465,-303.22206683,0.00016135,2]
[402681974,1768799447480,-196.77793317,0.00016135,2]
[402681975,1768799447490,-5338.22206683,0.00018,2]
[402681976,1768799447501,-19646.9005,0.00018,2]
[402681977,1768799447851,-288.14951301,0.00017646,2]
[402681978,1768799481000,-300.0,0.00016197,2]
[402681979,1768799481028,-334.60170355,0.00016198,2]
[402681980,1768799482934,-229.4334961,0.00016198,2]
[402681981,1768799486194,-229.89801628,0.00016198,2]
[402681982,1768799495979,-161.80446071,0.00015874,2]
[402681983,1768799496607,-1054.17553929,0.00015874,2]
[402681984,1768799510912,-191.0812197,0.000159,5]
[402681985,1768799511692,-8.9187803,0.000159,5]
[402681986,1768799602539,-182.90599203,0.00015973,2]
[402681987,1768799606008,-244.27365434,0.00015973,2]
[402681988,1768799616460,-72.82035363,0.00015973,2]
[402681989,1768799616483,-105.85594953,0.00015973,2]
[402681990,1768799623027,-248.85453284,0.00015973,2]
[402681991,1768799624495,-195.53814828,0.00015973,2]
[402681992,1768799625985,-51.29130184,0.00015973,2]
[402681993,1768799626008,-198.70869833,0.00015973,2]
[402681994,1768799628015,-179.13438847,0.00015973,2]
[402681995,1768799633717,-127.22279868,0.00015973,2]
[402681996,1768799633740,-141.68888712,0.00015973,2]
[402681997,1768799638325,-230.16985438,0.00015973,2]
[402681998,1768799648942,-128.86540689,0.00015973,2]
[402681999,1768799648975,-173.13459311,0.00015973,2]
[402682000,1768799652962,-222.83014562,0.00015973,2]
[402682001,1768799656771,-108.64910644,0.00015973,2]
[402682002,1768799656792,-150.14913744,0.00015973,2]
[402682003,1768799659449,-279.78711307,0.00015973,2]
[402682004,1768799663201,-70.5938778,0.00015973,2]
[402682005,1768799663222,-230.06907945,0.00015973,2]
[402682006,1768799666992,-242.21679347,0.00015973,2]
[402682007,1768799669411,-16.43309803,0.00015973,2]
[402682008,1768799669436,-275.82127808,0.00015973,2]
[402682009,1768799671466,-224.55063425,0.00015973,2]
[402682010,1768799671488,-40.13819617,0.00015973,2]
[402682011,1768799674142,-336.1850212,0.00015973,2]
[402682012,1768799678196,-124.50550617,0.00015973,2]
[402682013,1768799678220,-89.44679714,0.00015973,2]
[402682014,1768799681812,-408.06722936,0.00015973,2]
[402682015,1768799685617,-2.98782319,0.00015973,2]
[402682016,1768799685642,-234.2769288,0.00015973,2]
[402682017,1768799766132,166.66,0.00015093,2]
[402682018,1768799766547,166.66,0.0001541,2]
[402682019,1768799766765,166.66,0.00015728,2]
[402682020,1768799781436,-406.84791318,0.00015973,2]
[402682021,1768799785023,-94.71664072,0.00015973,2]
[402682022,1768799785043,-60.33069411,0.00015973,2]
[402682023,1768799796088,1000.0,0.00027397,120]
[402682024,1768799840846,-203.77963426,0.00015973,2]
[402682025,1768799843498,-2.32519585,0.00015973,2]
[402682026,1768799843520,-204.69805006,0.00016025,2]
[402682027,1768799961416,-410.802881,0.00015944,2]
[402682028,1768799961438,-115.6273578,0.00015985,2]
[402682029,1768799967629,-79.3726422,0.00015985,2]
[402682030,1768799976291,166.66,0.00015776,2]
[402682031,1768800006915,-104.12154994,0.00016025,2]
[402682032,1768800006940,-101.47708408,0.00016026,2]
[402682033,1768800008997,-148.52291592,0.00016026,2]
[402682034,1768800009019,-44.95573085,0.00016028,2]
[402682035,1768800066170,-154.372274,0.00015965,2]
[402682036,1768800066193,-16.07982818,0.00016046,2]
[402682037,1768800068342,-150.58017182,0.00016046,2]
[402682038,1768800068374,-4.34838606,0.00016065,2]
[402682039,1768800069883,-212.84239565,0.00016065,2]
[402682040,1768800072007,-32.80921829,0.00016065,2]
[402682041,1768800072034,-132.71865925,0.00016096,2]
[402682042,1768800080983,-316.52553556,0.00015923,2]
[402682043,1768800084697,-215.74450503,0.00015923,2]
[402682044,1768800086246,-64.72995941,0.00015923,2]
[402682045,1768800086273,-275.80053399,0.00015923,2]
[402682046,1768800086301,-242.05878113,0.00015923,2]
[402682047,1768800092484,-295.94121887,0.00015923,2]
[402682048,1768800097972,500.0,0.00015923,2]
[402682049,1768800098991,-175.74463723,0.00015978,2]
[402682050,1768800100801,-241.50505396,0.00015978,2]
[402682051,1768800102840,-179.75030881,0.00015978,2]
[402682052,1768800102869,-215.21420109,0.00015978,2]
[402682053,1768800106592,950.29,0.00015275,2]
[402682054,1768800109604,-296.62896685,0.00015978,2]
[402682055,1768800111632,-26.15683206,0.00015978,2]
[402682056,1768800111658,-253.16067858,0.00015978,2]
[402682057,1768800113342,-246.83932142,0.00015978,2]
[402682058,1768800113368,-7.73183225,0.00015997,2]
[402682059,1768800123281,-164.29414543,0.00015997,2]
[402682060,1768800136436,500.0,0.00015923,2]
[402682061,1768800136538,150.0,0.00015923,2]
[402682062,1768800136600,500.0,0.00015978,2]
[402682063,1768800136696,229.25175173,0.00015978,2]
[402682064,1768800136741,500.0,0.00015923,2]
[402682065,1768800136866,150.0,0.00015923,2]
[402682066,1768800136905,500.0,0.00015923,2]
[402682067,1768800136938,500.0,0.00015978,2]
[402682068,1768800137043,500.0,0.00015978,2]
[402682069,1768800137083,150.0,0.00015923,2]
[402682070,1768800137188,-328.80326924,0.00016033,2]
[402682071,1768800139714,-320.22630347,0.00015998,2]
[402682072,1768800143757,-339.56727529,0.00015998,2]
[402682073,1768800146315,-252.32852918,0.00015998,2]
[402682074,1768800148497,-144.64219206,0.00015998,2]
[402682075,1768800148520,-167.72760685,0.00015998,2]
[402682076,1768800200511,10000.01,0.0001598,2]
[402682077,1768800200535,10000.01,0.0001598,2]
[402682078,1768800200557,10000.01,0.0001598,2]
[402682079,1768800200580,10000.01,0.0001598,2]
[402682080,1768800200603,10000.01,0.0001598,2]
[402682081,1768800200627,7467.9208899,0.0001598,2]
[402682082,1768800204940,1446.18982888,0.00012531,2]
[402682083,1768800204965,452.70499935,0.00012531,2]
[402682084,1768800204988,5273.86181609,0.00012531,2]
[402682085,1768800205009,623.55335568,0.00012531,2]
[402682086,1768800245899,-69.14519315,0.00015998,2]
[402682087,1768800245922,-112.85480685,0.00016032,2]
[402682088,1768800247935,-223.01185211,0.00016032,2]
[402682089,1768800249522,-177.03486566,0.00016032,2]
[402682090,1768800285266,-150.0,0.00015923,2]
[402682091,1768800324831,539.19453453,0.000152,2]
[402682092,1768800353335,9460.81546547,0.000133,2]
[402682093,1768800353360,10000.01,0.000133,2]
[402682094,1768800353384,10000.01,0.000133,2]
[402682095,1768800353415,10000.01,0.000133,2]
[402682096,1768800353438,10000.01,0.000133,2]
[402682097,1768800353467,14082.39017164,0.000133,2]
[402682098,1768800364400,-150.0,0.00015978,2]
[402682099,1768800364425,-118.1609877,0.00015998,2]
[402682100,1768800396074,-150.0,0.00015915,2]
[402682101,1768800396099,-80.01256652,0.00015915,2]
[402682102,1768800398652,-69.98743348,0.00015915,2]
[402682103,1768800398676,-88.09754483,0.00015915,2]
[402682104,1768800402287,-402.86507208,0.00015915,2]
[402682105,1768800404346,-43.03738309,0.00015915,2]
[402682106,1768800404370,-150.0,0.00015915,2]
[402682107,1768800404392,-59.83710244,0.00015915,2]
[402682108,1768800405879,-90.16289756,0.00015915,2]
[402682109,1768800405904,-102.54127814,0.00015915,2]
[402682110,1768800408441,-397.45872186,0.00015915,2]
[402682111,1768800408464,-208.99710244,0.00015915,2]
[402682112,1768800413581,-212.61091557,0.00015915,2]
[402682113,1768800416141,-78.39198199,0.00015915,2]
[402682114,1768800416165,-76.55643311,0.00015915,2]
[402682115,1768800418185,-287.38908443,0.00015915,2]
[402682116,1768800420385,-129.05448246,0.00015915,2]
[402682117,1768800420407,-57.08667249,0.00015915,2]
[402682118,1768800422242,-158.91042995,0.000158,5]
[402682119,1768800423732,-41.08957005,0.000158,5]
[402682120,1768800423755,-172.02897925,0.000159,5]
[402682121,1768800425110,5561.12946727,0.00015,2]
[402682122,1768800425161,-270.15501241,0.000159,5]
[402682123,1768800488626,212.74395336,0.000135,2]
[402682124,1768800499238,4226.13657937,0.00015,2]
[402682125,1768800499261,6334.85125013,0.00015,2]
[402682126,1768800517123,3665.15874987,0.00015,2]
[402682127,1768800517146,1260.81457259,0.00015,2]
[402682132,1768800533166,200.0,0.00015133,2]
[402682133,1768800538607,-57.81600834,0.000159,5]
[402682134,1768800538636,-92.91332751,0.00015915,2]
[402682135,1768800538662,-150.0,0.00015915,2]
[402682136,1768800538691,-500.0,0.00015915,2]
[402682137,1768800538719,-150.0,0.00015915,2]
[402682138,1768800538747,-150.0,0.00015915,2]
[402682139,1768800538776,-500.0,0.00015915,2]
[402682140,1768800538809,-150.0,0.00015915,2]
[402682141,1768800538839,-227.8635494,0.00015952,2]
[402682142,1768800539448,-3957.1857705,0.00015952,2]
[402682143,1768800539484,-2085.638459,0.00015952,2]
[402682144,1768800539514,-978.0,0.00015969,2]
[402682145,1768800539544,-150.0,0.0001597,2]
[402682146,1768800539572,-150.0,0.0001597,2]
[402682147,1768800539600,-534.0,0.0001597,2]
[402682148,1768800539627,-150.0,0.0001597,2]
[402682149,1768800539656,-500.0,0.0001597,2]
[402682150,1768800539684,-404.733082,0.0001597,2]
[402682151,1768800539719,-95.266918,0.0001597,2]
[402682152,1768800539748,-493.0,0.0001597,2]
[402682153,1768800539776,-150.0,0.0001597,2]
[402682154,1768800539805,-150.0,0.0001597,2]
[402682155,1768800539833,-500.0,0.0001597,2]
[402682156,1768800539862,-150.0,0.0001597,2]
[402682157,1768800539891,-234.84703135,0.0001597,2]
[402682158,1768800539920,-500.0,0.0001597,2]
[402682159,1768800539958,-213.50419606,0.0001597,2]
[402682160,1768800539991,-215.04128154,0.00015973,2]
[402682161,1768800541525,-300.0,0.00015969,2]
[402682162,1768800542474,-394.83897219,0.00015898,2]
[402682163,1768800542665,891.88798212,0.000135,2]
[402682164,1768800545430,-1667.56111964,0.00015997,2]
[402682165,1768800545540,-10000.01,0.00015997,2]
[402682166,1768800547710,-10000.01,0.00015997,2]
[402682167,1768800547926,-10000.01,0.00015997,2]
[402682168,1768800548070,-10000.01,0.00015997,2]
[402682169,1768800548973,-10000.01,0.00015997,2]
[402682170,1768800548988,-10000.01,0.00015997,2]
[402682171,1768800549010,-10000.01,0.00015997,2]
[402682172,1768800559987,2097.0,0.00015182,2]
[402682173,1768800560123,-5394.8951,0.00015997,2]
[402682174,1768800586984,206.4,0.00015129,2]
[402682175,1768800608219,187.76274082,0.00015465,2]
[402682188,1768800631456,-6573.85553789,0.00015898,2]
[402682189,1768800631466,-250.0,0.00015915,2]
[402682190,1768800631475,-208.32254134,0.00015915,2]
[402682191,1768800631487,-500.0,0.00015915,2]
[402682192,1768800631496,-500.0,0.00015915,2]
[402682193,1768800631506,-283.0,0.00015915,2]
[402682194,1768800631821,-451.30102214,0.00015924,2]
[402682195,1768800631845,-1200.0,0.0001594,2]
[402682196,1768800631855,-2097.0,0.00015941,2]
[402682197,1768800631864,-500.0,0.0001597,2]
[402682198,1768800631874,-500.0,0.0001597,2]
[402682199,1768800631884,-300.0,0.00015995,2]
[402682200,1768800631893,-210.98331326,0.00015996,2]
[402682201,1768800631903,-199.39907343,0.00015996,2]
[402682203,1768800631912,-500.0,0.00015996,2]
[402682205,1768800631922,-500.0,0.00015996,2]
[402682206,1768800631931,-307.84140909,0.00015996,2]
[402682208,1768800631940,-500.0,0.00015996,2]
[402682210,1768800631949,-500.0,0.00015996,2]
[402682212,1768800631959,-500.0,0.00015996,2]
[402682214,1768800631968,-500.0,0.00015996,2]
[402682215,1768800631978,-600.0,0.00015996,2]
[402682217,1768800631987,-500.0,0.00015996,2]
[402682219,1768800631997,-500.0,0.00015996,2]
[402682221,1768800632005,-500.0,0.00015996,2]
[402682223,1768800632014,-500.0,0.00015996,2]
[402682225,1768800632024,-500.0,0.00015996,2]
[402682227,1768800632041,-500.0,0.00015996,2]
[402682228,1768800632055,-500.0,0.00015996,2]
[402682229,1768800632065,-500.0,0.00015996,2]
[402682230,1768800632074,-500.0,0.00015996,2]
[402682231,1768800632085,-500.0,0.00015996,2]
[402682232,1768800632094,-500.0,0.00015996,2]
[402682233,1768800632104,-500.0,0.00015996,2]
[402682234,1768800632113,-500.0,0.00015996,2]
[402682235,1768800632123,-500.0,0.00015996,2]
[402682236,1768800632132,-500.0,0.00015996,2]
[402682237,1768800632142,-500.0,0.00015996,2]
[402682238,1768800632151,-500.0,0.00015996,2]
[402682239,1768800632161,-378.35551491,0.00015996,2]
[402682240,1768800632171,-500.0,0.00015996,2]
[402682241,1768800632180,-500.0,0.00015996,2]
[402682242,1768800632189,-500.0,0.00015996,2]
[402682243,1768800632199,-500.0,0.00015996,2]
[402682244,1768800632208,-500.0,0.00015996,2]
[402682245,1768800632218,-500.0,0.00015996,2]
[402682246,1768800632227,-320828.87434653,0.00015997,2]
[402682247,1768800632239,-333885.85563383,0.00015997,2]
[402682248,1768800632249,-150.0,0.00015998,2]
[402682249,1768800632259,-1246.9797123,0.00015998,2]
[402682250,1768800632268,-3028.8723,0.00015998,2]
[402682251,1768800632277,-18518.81335387,0.00016,4]
[402682252,1768800632289,-30810.69481204,0.00016,4]
[402682253,1768800632300,-307.06782579,0.00016,4]
[402682258,1768800637403,-3914.07449799,0.00016,4]
[402682259,1768800637568,-1000.0,0.00016,4]
[402682334,1768800639697,-376930.01872231,0.00016,4]
[402682335,1768800639707,-150.0,0.00016025,2]
[402682336,1768800639716,-534.0,0.00016025,2]
[402682337,1768800639726,-493.0,0.00016025,2]
[402682338,1768800639737,-150.0,0.00016025,2]
[402682339,1768800639748,-150.0,0.00016025,2]
[402682340,1768800639759,-500.0,0.00016025,2]
[402682341,1768800639768,-150.0,0.00016025,2]
[402682342,1768800639777,-150.0,0.00016025,2]
[402682343,1768800639786,-500.0,0.00016025,2]
[402682344,1768800639796,-396.4287002,0.00016025,2]
[402682345,1768800639805,-209.98696259,0.00016025,2]
[402682346,1768800639815,-250.0,0.00016033,2]
[402682347,1768800639825,-208.46022007,0.00016033,2]
[402682348,1768800639835,-200.0,0.00016033,2]
[402682349,1768800639847,-262.58907079,0.00016079,2]
[402682350,1768800639857,-534.0,0.00016079,2]
[402682351,1768800639866,-493.0,0.00016079,2]
[402682353,1768800639876,-150.0,0.00016079,2]
[402682355,1768800639886,-150.0,0.00016079,2]
[402682357,1768800639896,-365.7773908,0.00016079,2]
[402682358,1768800639906,-150.0,0.00016079,2]
[402682360,1768800639915,-500.0,0.00016079,2]
[402682362,1768800639924,-154.92855788,0.00016088,2]
[402682364,1768800639934,-2284.702,0.00016097,2]
[402682366,1768800639943,-195.287,0.00016097,2]
[402682368,1768800639953,-1199.06,0.00016098,2]
[402682370,1768800639962,-2500.0,0.00016098,2]
[402682371,1768800639972,-6573.85553782,0.0001612,2]
[402682372,1768800639981,-298.70669882,0.00016128,2]
[402682373,1768800639991,-513.8,0.00016128,2]
[402682374,1768800640000,-9999.99,0.00016128,2]
[402682375,1768800640009,-310.22,0.00016128,2]
[402682376,1768800640019,-1188.53,0.00016128,2]
[402682377,1768800640028,-999.99,0.00016128,2]
[402682378,1768800640037,-150.99,0.00016128,2]
[402682379,1768800640047,-9999.99,0.00016128,2]
[402682380,1768800640059,-299.99,0.00016128,4]
[402682381,1768800640069,-1536.27,0.00016128,2]
[402682382,1768800640079,-3297.18,0.00016128,2]
[402682384,1768800640092,-749.31,0.00016128,2]
[402682386,1768800640110,-9999.99,0.00016128,2]
[402682388,1768800640127,-4999.99,0.00016128,2]
[402682389,1768800640137,-1192.77,0.00016128,2]
[402682390,1768800640146,-11325.11,0.00016128,2]
[402682391,1768800640155,-26210.11,0.00016128,2]
[402682392,1768800640164,-296.13,0.00016128,2]
[402682393,1768800640174,-150.99,0.00016128,2]
[402682394,1768800640183,-3426.15,0.00016128,2]
[402682395,1768800640192,-167.85424787,0.00016128,2]
[402682396,1768800640201,-534.0,0.00016134,2]
[402682397,1768800640210,-493.0,0.00016134,2]
[402682398,1768800640219,-150.0,0.00016134,2]
[402682399,1768800640228,-150.0,0.00016134,2]
[402682400,1768800640237,-150.0,0.00016134,2]
[402682401,1768800640246,-500.0,0.00016134,2]
[402682402,1768800640255,-394.83897212,0.00016184,2]
[402682403,1768800640264,-200.0,0.00016188,2]
[402682404,1768800640273,-151.0,0.00016188,2]
[402682405,1768800640282,-151.0,0.00016188,2]
[402682406,1768800640291,-151.0,0.00016188,2]
[402682407,1768800640301,-151.0,0.00016188,2]
[402682408,1768800640310,-151.0,0.00016188,2]
[402682409,1768800640319,-200.0,0.00016188,2]
[402682410,1768800640328,-369.51952417,0.00016188,2]
[402682411,1768800640337,-500.0,0.00016188,2]
[402682412,1768800640347,-450.314911,0.00016188,2]
[402682413,1768800640356,-534.0,0.00016189,2]
[402682414,1768800640365,-493.0,0.00016189,2]
[402682415,1768800640374,-240.74727517,0.00016189,2]
[402682416,1768800640383,-200.94075382,0.00016189,2]
[402682417,1768800640392,-250.0,0.00016189,2]
[402682418,1768800640402,-500.0,0.00016189,2]